Cogmind - Beta 14 @@@ ROGUE MODE // 2025.03.13 @ 13:26:54 Player: CONM Result: Destroyed by Autobeam Turret with Autobeam Performance ------------- Evolutions (0) 0 Regions Visited (3) 600 Robots Destroyed (16) 80 Value Destroyed (414) 414 Prototype IDs (0) 0 Alien Tech Used (0) 0 Bonus (0) 0 TOTAL SCORE: 1094 Bonus ------- None Cogmind --------- Core Integrity 0/250 Matter 156/300 Energy 98/100 System Corruption 0% Temperature Cool (12) Movement Core (50) Location -10/Subcaves Parts ------- > --- POWER (1) -------- (None) > --- PROPULSION (2) --- (None) > --- UTILITY (2) ------ (None) > --- WEAPON (2) ------- (None) > --- INVENTORY (5) ---- Large Storage Unit Tractor Beam Light Assault Rifle Autogun Battle Cannon Peak State ------------ > --- POWER ------------ Ion Engine > --- PROPULSION ------- Aluminum Leg Makeshift Leg > --- UTILITY ---------- Medium Storage Unit Seismic Detector > --- WEAPON ----------- Subdweller Beam Cannon Rocket Launcher > --- INVENTORY -------- Light Ion Engine Large Storage Unit Compact Matter Pod Structural Scanner Medium Armor Plating Tractor Beam Light Assault Rifle Autogun Autogun Autogun [Rating: 13] Favorites ----------- Power Ion Engine Engine Ion Engine Propulsion Aluminum Leg Treads Spiked Treads Leg Aluminum Leg Utility Medium Storage Unit Device Seismic Detector Storage Medium Storage Unit Protection Medium Armor Plating Weapon Light Assault Rifle Energy Cannon Subdweller Beam Cannon Ballistic Gun Light Assault Rifle Launcher Rocket Launcher Build | -11 -10 -10 -10 ------- Run | Yrd Mat Min Sub Slots Evolved . | . . . . Power . | . . . . Propulsion . | . . . . Utility . | . . . . Weapon . | . . . . Parts Attached 17 | 7 1 . 9 Power 2 | 1 . . 1 Engine 2 | 1 . . 1 Core . | . . . . Reactor . | . . . . Propulsion 4 | 2 . . 2 Treads 1 | . . . 1 Leg 3 | 2 . . 1 Wheel . | . . . . Hover . | . . . . Flight . | . . . . Utility 5 | 2 1 . 2 Device 1 | 1 . . . Storage 2 | 1 1 . . Processor . | . . . . Hackware . | . . . . Protection 2 | . . . 2 Artifact . | . . . . Weapon 6 | 2 . . 4 Energy Gun . | . . . . Energy Cannon 1 | . . . 1 Ballistic Gun 4 | 2 . . 2 Ballistic Cannon . | . . . . Launcher 1 | . . . 1 Special Weapon . | . . . . Impact Weapon . | . . . . Slashing Weapon . | . . . . Piercing Weapon . | . . . . Special Melee Weapon . | . . . . Unidentified Prototypes . | . . . . Parts Lost 7 | . . . 7 Power 2 | . . . 2 Propulsion 2 | . . . 2 Utility 1 | . . . 1 Weapon 2 | . . . 2 Highest Loss Streak 4 | . . . 4 To Critical Strikes . | . . . . Average Slot Usage (%) 92 | . 100 100 88 Engine 12 | . 14 14 11 Treads 1 | . . . 2 Leg 23 | . 28 28 21 Device 11 | . 14 14 10 Storage 14 | . 14 14 14 Energy Cannon 3 | . . . 5 Ballistic Gun 16 | . 28 28 10 Launcher 6 | . . . 9 Peak Build Rating 13 | 7 8 8 13 Average Rating 9 | 5 7 8 10 On Entrance 5 | . 7 8 8 Naked Turns 1 | . . . 1 Heaviest Build 28 | 13 18 18 28 Greatest Support 30 | 20 20 20 30 Greatest Overweight (x) 5 | 1 . . 5 Average Overweight (x) . | . . . . Largest Inventory Capacity 10 | 8 10 10 10 Average Capacity 9 | 7 8 10 9 Most Carried 10 | 3 9 10 10 Average Carried 8 | 1 7 9 9 Final Capacity 10 | 8 10 10 5 Final Carried 10 | 3 9 10 5 Class Distribution -------------------- 100% | Mutant Dominant Class ---------------- Mutant | -10/Materials Mutant | -10/Mines Mutant | -10/Subcaves Resources | -11 -10 -10 -10 ----------- Run | Yrd Mat Min Sub Matter Collected 517 | 282 . 16 219 Remotely . | . . . . Salvage Created 432 | 91 . 12 329 Parts 26 | 6 . 3 17 Haulers Intercepted . | . . . . Recyclers Shooed . | . . . . Parts Field Recycled . | . . . . Retrieved Matter . | . . . . Parts Self-Destructed 8 | . . . 8 Prevented . | . . . . Kills | -11 -10 -10 -10 ------- Run | Yrd Mat Min Sub Combat Hostiles Destroyed 13 | . . . 13 Guns 6 | . . . 6 AOE 7 | . . . 7 Classes Destroyed 5 | 2 . 1 2 Worker 1 | . . 1 . Tunneler 1 | 1 . . . Recycler 1 | 1 . . . Swarmer 4 | . . . 4 Subdweller 9 | . . . 9 Best Kill Streak 4 | 2 . 1 4 Combat Bots Only 4 | . . . 4 Max Kills in Single Turn 2 | 1 . 1 2 Gunslinging . | . . . . Exploded 2 | . . . 2 Melee . | . . . . Uniques/NPCs Destroyed . | . . . . Combat | -11 -10 -10 -10 -------- Run | Yrd Mat Min Sub Hostile Shots Fired 113 | . . . 113 Missed 33 | . . . 33 Damage Taken 1120 | . 42 . 1078 Core 253 | . 24 . 229 Absorbed by Shields . | . . . . Core Remaining (%) 100 | 100 . . . Volleys Fired 42 | 6 2 1 33 Largest 2 | 2 2 2 2 Hottest 46 | 40 40 40 46 Shots Fired 71 | 12 4 2 53 Gun 58 | 12 4 2 40 Cannon . | . . . . Launcher 13 | . . . 13 Special . | . . . . Kinetic 58 | 12 4 2 40 Thermal . | . . . . Explosive 13 | . . . 13 Electromagnetic . | . . . . Robot Hit Streak 23 | 4 2 1 23 Robot Miss Streak 5 | 2 2 1 5 Penetration Max . | . . . . Secondary Targets 1 | . . . 1 Max Gunslinging Chain 1 | . . . 1 Shots Hit Robots 42 | 8 2 1 31 Core Hits 26 | 5 1 1 19 Critical Kills . | . . . . Critical Parts Destroyed . | . . . . Critical Strikes . | . . . . Melee Attacks . | . . . . Impact . | . . . . Slashing . | . . . . Piercing . | . . . . Sneak Attacks . | . . . . Combat Hostiles . | . . . . Follow-up Attacks . | . . . . Damage Inflicted 1153 | 69 17 10 1057 Guns 383 | 69 17 10 287 Cannons . | . . . . Explosions 770 | . . . 770 Melee . | . . . . Ramming . | . . . . Kinetic 383 | 69 17 10 287 Thermal . | . . . . Explosive 770 | . . . 770 Electromagnetic . | . . . . Impact . | . . . . Slashing . | . . . . Piercing . | . . . . Highest Corruption . | . . . . Average Corruption . | . . . . Corruption Purged . | . . . . Corruption Blocked . | . . . . Overload Shots . | . . . . Overflow Damage . | . . . . Projectiles . | . . . . Explosions . | . . . . Melee . | . . . . Knockbacks . | . . . . Impact . | . . . . Kinetic . | . . . . Secondary . | . . . . Self-Inflicted Damage 82 | . . . 82 Shots 2 | . . . 2 Rammed . | . . . . Targets Rammed . | . . . . Kicked . | . . . . Crushed . | . . . . Highest Temperature . | . . . . Average Temperature . | . . . . Received Heat Transfer 180 | . . . 180 Siege Activations . | . . . . Robots Corrupted . | . . . . Combat Hostiles . | . . . . Parts Fried . | . . . . Impact Corruptions . | . . . . Robots Melted . | . . . . Combat Hostiles . | . . . . Parts Melted . | . . . . Heat Transferred . | . . . . Parts Sabotaged . | . . . . Parts Stolen . | . . . . Parts Stripped . | . . . . Power Chain Reactions . | . . . . Alert | -11 -10 -10 -10 ------- Run | Yrd Mat Min Sub Peak Influence 64 | 10 64 29 . Initial 24 | . 6 24 . Average 21 | 3 25 27 . Maximum Alert Level . | . . . . Low Security (%) 100 | 100 100 100 . Level 1 . | . . . . Level 2 . | . . . . Level 3 . | . . . . Level 4 . | . . . . Level 5 . | . . . . High Security . | . . . . Max Security . | . . . . Squads Dispatched 1 | . 1 . . Investigation . | . . . . Extermination . | . . . . Reinforcement 1 | . 1 . . Assault . | . . . . Garrison . | . . . . Intercept . | . . . . Searches Triggered . | . . . . Construction Impeded . | . . . . Haulers Reinforced . | . . . . Active Scanning Responses . | . . . . Cargo Convoy Interrupts . | . . . . Stealth | -11 -10 -10 -10 --------- Run | Yrd Mat Min Sub Distress Signals . | . . . . Communications Jammed . | . . . . Distress Signals . | . . . . Times Spotted 18 | . 3 . 15 Peak Tracking Total 6 | . 1 . 6 Tactical Retreats 2 | . . . 2 Traps | -11 -10 -10 -10 ------- Run | Yrd Mat Min Sub Traps Triggered 2 | . 2 . . Indirectly . | . . . . Trap Hack Attempts . | . . . . Triggered . | . . . . Disarmed . | . . . . Reprogrammed . | . . . . Reused . | . . . . Traps Extracted . | . . . . Installed . | . . . . Triggered . | . . . . Machines | -11 -10 -10 -10 ---------- Run | Yrd Mat Min Sub Machines Disabled . | . . . . Max in Single Turn . | . . . . Machines Repaired . | . . . . Machines Dismantled . | . . . . Machines Sabotaged . | . . . . Overloaded Fab Kills . | . . . . Hacking | -11 -10 -10 -10 --------- Run | Yrd Mat Min Sub Machines Accessed 3 | . 3 . . Terminals 3 | . 3 . . Fabricators . | . . . . Repair Stations . | . . . . Recycling Units . | . . . . Scanalyzers . | . . . . Garrison Access . | . . . . Total Hacks 7 | . 7 . . Successful 2 | . 2 . . Failed 5 | . 5 . . Catastrophic 2 | . 2 . . Database Lockouts . | . . . . Manual . | . . . . Terminals 7 | . 7 . . Fabricators . | . . . . Repair Stations . | . . . . Recycling Units . | . . . . Scanalyzers . | . . . . Garrison Access . | . . . . Terminal Hacks 2 | . 2 . . Record 1 | . 1 . . Branch Access Points 1 | . 1 . . Fabricator Hacks . | . . . . Repair Station Hacks . | . . . . Recycling Unit Hacks . | . . . . Scanalyzer . | . . . . Garrison Access Hacks . | . . . . Unauthorized Hacks . | . . . . Terminals . | . . . . Fabricators . | . . . . Repair Stations . | . . . . Recycling Units . | . . . . Scanalyzers . | . . . . Garrison Access . | . . . . Data Cores Recovered . | . . . . Used . | . . . . Hacking Detections 3 | . 3 . . Full Trace Events . | . . . . Feedback Events . | . . . . Feedback Blocked . | . . . . Robot Schematics Acquired . | . . . . Robots Built . | . . . . Authchips . | . . . . Time . | . . . . Total Robot Build Rating . | . . . . Part Schematics Acquired . | . . . . Parts Built . | . . . . Authchips . | . . . . Time . | . . . . Total Part Build Rating . | . . . . Parts Repaired . | . . . . Time . | . . . . Parts Recycled . | . . . . Recycled Matter . | . . . . Retrieved Matter . | . . . . Retrieved Components . | . . . . Parts Scanalyzed . | . . . . Part Schematics Acquired . | . . . . Parts Damaged . | . . . . Bothacking | -11 -10 -10 -10 ------------ Run | Yrd Mat Min Sub Used RIF Installer . | . . . . Robots Hacked . | . . . . Non-combat . | . . . . Combat . | . . . . Robot Hacks Applied . | . . . . Relay Couplers Released . | . . . . Fabnet Peak Effective % . | . . . . Robots Rewired . | . . . . Allies Hacked . | . . . . Hacks Repelled . | . . . . Allies | -11 -10 -10 -10 -------- Run | Yrd Mat Min Sub Total Allies . | . . . . Largest Group . | . . . . Highest-Rated Group . | . . . . Highest-Rated Ally . | . . . . Total Orders . | . . . . Ally Attacks . | . . . . Total Damage . | . . . . Kills . | . . . . Allies Corrupted . | . . . . Allies Melted . | . . . . Intel | -11 -10 -10 -10 ------- Run | Yrd Mat Min Sub Robot Analysis Total . | . . . . Derelict Logs Recovered 3 | . . 1 2 Drone Launches . | . . . . Drone Recoveries . | . . . . Exploration | -11 -10 -10 -10 ------------- Run | Yrd Mat Min Sub Turns Passed 1632 | 122 203 295 1012 Spaces Moved 1007 | 82 157 136 632 Core 18 | 9 . . 9 Treads 96 | . . . 96 Legs 893 | 73 157 136 527 Wheels . | . . . . Hover . | . . . . Flight . | . . . . Fastest Speed 50 | 50 120 120 50 Average Speed 132 | 112 120 120 141 Slowest Speed 300 | 120 120 120 300 Overloaded Moves . | . . . . Propulsion Burnouts . | . . . . Robots Hopped . | . . . . Cave-ins Triggered . | . . . . Exploration Rate (%) 30 | 4 36 37 44 Regions Visited 3 Branch Regions 2 Pre-discovered Areas 1 | . . 1 . Known Exits Taken 1 | . 1 . . Unknown Exits Taken 2 | 1 . 1 . Scrap Searched 2 | . . . 2 Spaces Dug . | . . . . Terrain Destroyed 95 | . . . 95 Melee . | . . . . Projectile . | . . . . AOE 95 | . . . 95 Terrain Rammed . | . . . . Walls Destroyed . | . . . . Machines Disabled . | . . . . Actions | -11 -10 -10 -10 --------- Run | Yrd Mat Min Sub Total 1239 | 98 171 266 704 Wait 154 | 1 1 127 25 Move 1004 | 81 156 135 632 Hop . | . . . . Pick Up 14 | 3 8 2 1 Fast Attach 9 | 7 . . 2 Attach 3 | . . . 3 Detach 1 | . . . 1 Swap 5 | . 1 . 4 Drop 7 | . 3 1 3 Fire 42 | 6 2 1 33 Melee . | . . . . Ram . | . . . . Kick . | . . . . Crush . | . . . . Escape Stasis . | . . . . Rewire . | . . . . Trap . | . . . . Miscellaneous . | . . . . Route ------- -11/Scrapyard -10/Materials (discovered 3 exits: [*Mat] / *Min x2) -10/Mines (discovered 3 exits: [*Mat x2] / [*Sub]) -10/Subcaves (discovered 1 exit: [*Rec]) History --------- Turn | Location | Event 5 | -11/Scrapyard | Discovered new exit (range 15) 123 | -11/Scrapyard | Entered Materials 220 | -10/Materials | Identified exit to Mines 256 | -10/Materials | Discovered new exit (range 9) 304 | -10/Materials | Build established: Mutant 326 | -10/Materials | Entered Mines 337 | -10/Mines | Learned location of Mines (-8) 375 | -10/Mines | Discovered new exit (range 13) 387 | -10/Mines | Received a Rocket Launcher from a helpful Derelict 431 | -10/Mines | Discovered new exit (range 6) 611 | -10/Mines | Discovered new exit (range 6) 621 | -10/Mines | Entered Subcaves 678 | -10/Subcaves | Ambushed by Subdweller buried in earth 750 | -10/Subcaves | A swath of the cavern ceiling suddenly collapsed 1039 | -10/Subcaves | Learned location of 1 exit from Materials 1049 | -10/Subcaves | Curiously followed by a Cobbler waking with a query about "LVR3C" 1372 | -10/Subcaves | Ambushed by Subdweller buried in earth 1401 | -10/Subcaves | Core integrity fell below 50% 1427 | -10/Subcaves | Lost 4 parts (1p2n1w) 1596 | -10/Subcaves | Core integrity fell below 20% 1627 | -10/Subcaves | Discovered new exit (range 14) 1632 | -10/Subcaves | Released all parts (3) 1633 | -10/Subcaves | Destroyed by Autobeam Turret with Autobeam Last Messages --------------- 01459_ 62-CLW(O) puts together Shrapnel Trap. 01544_ Acquired derelict log, extracted data. Data stored: Mines entrances (x2). 01564_ 3F-SLA(u) tweaks Twisted Machinery. 01596_ S-10 Pest destroyed. 01606_ Med. Armor Plating destroyed. 01607_ Lgt. Ion Engine destroyed. 01611_ S-10 Pest destroyed. 01613_ Flight Unit fries itself beyond repair. 01617_ S-10 Pest destroyed. 01618_ Flight Unit fries itself beyond repair. 01624_ Lgt. Assault Rifle fries itself beyond repair. 01624_ Acquired 11 matter. 01626_ Acquired 35 matter. 01627_ EXIT=FOUND 01628_ Lgt. Ion Engine fries itself beyond repair. 01629_ Autogun destroyed. 01632_ Released Spk. Treads. 01632_ Released Autogun. 01632_ Released Med. Storage Unit. Map ----- +----------------------------------------------------+ | ??????????????# ##?## #??????## #### | | ????????????### #??# ##????## ### | | ????????????#"""""" #### #????# ## | | ???????????## """" ##???# | | ??????????## ###### | | ?????????## ##### | | ?????????# # ###### | | ?????????# ###### ##??## | | ???????????### #????# ##??## | | ?????????????## ## #???# ##??# | | ??????????????## #### #???# #### | | ???????????????### ##### #???# | | ?????????????????# #######??# | | ?????????????????# #???????# | | ?????????????????# ##??????# | | ?????????????????## ####???# | | ??????????????????# ##?# | | ??????????????????## % ## ## ## | | ???????????????????## O # ### ## | | ????????????????????### ## ### | | ??????????????????????### ### #?### | | ????????????????????????#! ###?## ####?# | | ??????????????????????###=!! #####?# #?# ## | | ?????????????????????## #[! #?# #?# ## | | ????????????????????## #? ? #?# | | ????????????????????# @ #???? #### | | ????????????????????# ## ##????? #?# | | ????????????????????#### ###?##??????#### | | ??????????????????????? ???????????? "## ## | | ?????????????????????? ????????????# #" #?# | | ????????????????????? ???????????? #??# | | ?????????????????????" t t "???????????# #" #### | | ????????????????????#" " " "#??????????#?# # | | ????????????????????#"""" """"#????????????### | | ????????????????????#####<#####?????????????# | | ???????????????????###???#??????????????????## # | | ???????????????????# ###?######??????????????## # | | ?????????????????### ### # ##?????????????# | | ???????????????### # #????????###??## | | ???????????????## [ # ##??????## ##??# | | ???????????????# #& ###### #??????# #??# | | ###???########## #& ### % #####?## #?## # | | # ##?## ###%! ## ## ### ### | | # ### "" & & ## ## | | ## " "" ## | | ## "" "" ##### ## ## #" | | # """ " " ##???# ### ## ### | | """""" ### #????# ##?#### ## | | " "#?###????## #???## | | ####### #?????????## #???# | +----------------------------------------------------+ Best States ------------- Heat Dissipation 25 Energy Generation 10 Energy Capacity 250 Matter Stores 300 Matter Capacity 300 Sight Range 16 Terrain Scan Density 10 Armor Coverage 225 Evasion (%) 55 Recoil Reduction 1 Item Schematics ----------------- None Robot Schematics ------------------ None Fabricated ------------ Nothing Alien Tech Used ----------------- None Achievements -------------- None Challenges ------------ None Game ------ Seed DroneArmageddonScanner Manual? 0 Play Time 00:16:08 Cumulative 115.6 hours Start 2025.03.10 @ 18:24:31 End 2025.03.13 @ 13:26:54 Sessions 3 Manual Loads 0 Difficulty Rogue Special Mode None Game No. 137 Rogue 137 Adventurer 0 Explorer 0 Win Type - Total 0 Types 0/0/0/0/0/0/0/0/0 Lore% 50 Gallery% 45 Achievement% 42 Wizard Run 0 Options --------- Layout 0 ASCII 0 Keyboard 0 Movement Arrows Keybinds 0 Fullscreen 2 Font 18/SmallcapsGlow Map View 76x50 Zoom Use 0% Tactical HUD 1 Map Filters NONE Filters NONE Steam 1 RUN: 493c5fad-5dce-4a49-a738-3e31a504335f